bitfinex/quotes_BTCUSD_20240811
["timestamp","ask_amount","ask_price","bid_price","bid_amount"]
[1723369929181,0.002832,61215.0,61214.0,0.0009152]
[1723369929182,0.197483,61215.0,61214.0,0.0009152]
[1723369929392,0.195483,61215.0,61214.0,0.0009152]
[1723369929824,0.197483,61215.0,61214.0,0.0009152]
[1723369930032,0.193483,61215.0,61214.0,0.0009152]
[1723369930298,0.195483,61215.0,61214.0,0.0009152]
[1723369930503,0.197483,61215.0,61214.0,0.0009152]
[1723369932074,0.654887,61215.0,61214.0,0.0009152]
[1723369933214,0.420185,61215.0,61214.0,0.0009152]
[1723369933427,0.440185,61215.0,61214.0,0.0009152]
[1723369933634,0.668887,61215.0,61214.0,0.0009152]
[1723369934063,0.592587,61215.0,61214.0,0.0009152]
[1723369934279,0.135183,61215.0,61214.0,0.0647152]
[1723369934485,0.363885,61215.0,61214.0,0.0647152]
[1723369934913,0.363885,61215.0,61214.0,0.0009152]
[1723369935130,0.44939049,61215.0,61214.0,0.0009152]
[1723369935367,1.44190741,61215.0,61214.0,0.0009152]
[1723369936000,1.67060941,61215.0,61214.0,0.0009152]
[1723369936434,1.83560941,61215.0,61214.0,0.0009152]
[1723369936866,2.03580941,61215.0,61214.0,0.0009152]
[1723369937039,2.02680941,61215.0,61214.0,0.0009152]
[1723369937561,2.04080941,61215.0,61214.0,0.0009152]
[1723369938230,2.05280941,61215.0,61214.0,0.0009152]
[1723369938368,2.29151141,61215.0,61214.0,0.0009152]
[1723369938573,2.06680941,61215.0,61214.0,0.0009152]
[1723369938771,2.05280941,61215.0,61214.0,0.0009152]
[1723369938984,2.06280941,61215.0,61214.0,0.0009152]
[1723369939187,2.07680941,61215.0,61214.0,0.0009152]
[1723369939397,2.04880941,61215.0,61214.0,0.0009152]
[1723369939635,2.06280941,61215.0,61214.0,0.0009152]
[1723369939801,2.07680941,61215.0,61214.0,0.0009152]
[1723369940225,2.06280941,61215.0,61214.0,0.0009152]
[1723369940420,2.07680941,61215.0,61214.0,0.0009152]
[1723369940587,2.30551141,61215.0,61214.0,0.0009152]
[1723369940782,2.29551141,61215.0,61214.0,0.0009152]
[1723369941189,2.34877085,61215.0,61214.0,0.0009152]
[1723369941400,2.32007842,61215.0,61214.0,0.0009152]
[1723369941625,2.3587765,61215.0,61214.0,0.0009152]
[1723369941838,2.1300745,61215.0,61214.0,0.0009152]
[1723369942249,2.1200745,61215.0,61214.0,0.0009152]
[1723369942460,2.08137642,61215.0,61214.0,0.0009152]
[1723369942662,2.12004553,61215.0,61214.0,0.0009152]
[1723369942876,2.06680941,61215.0,61214.0,0.0009152]
[1723369945177,1.70230941,61215.0,61214.0,0.0009152]
[1723369945640,1.10230941,61215.0,61214.0,0.0009152]
[1723369946323,1.16740941,61215.0,61214.0,0.0009152]
[1723369946527,1.22240941,61215.0,61214.0,0.0009152]
[1723369946733,1.95240941,61215.0,61214.0,0.0009152]
[1723369946940,2.21811141,61215.0,61214.0,0.0009152]
[1723369947341,2.20411141,61215.0,61214.0,0.0009152]
[1723369947550,2.19411141,61215.0,61214.0,0.0009152]
[1723369948489,2.20811141,61215.0,61214.0,0.0009152]
[1723369949143,2.23211141,61215.0,61214.0,0.0009152]
[1723369949348,2.21811141,61215.0,61214.0,0.0009152]
[1723369949752,2.23211141,61215.0,61214.0,0.0009152]
[1723369949968,2.22211141,61215.0,61214.0,0.0009152]
[1723369950254,2.23211141,61215.0,61214.0,0.0009152]
[1723369950670,2.22811141,61215.0,61214.0,0.0009152]
[1723369951440,2.28197635,61215.0,61214.0,0.0009152]
[1723369952062,2.29197635,61215.0,61214.0,0.0009152]
[1723369952230,2.26797635,61215.0,61214.0,0.0009152]
[1723369952438,2.28134523,61215.0,61214.0,0.0009152]
[1723369952638,2.24211141,61215.0,61214.0,0.0009152]
[1723369953064,1.049172,61214.0,61213.0,0.0009152]
[1723369953282,2.35408692,61214.0,61213.0,0.0009152]
[1723369954454,2.39334475,61214.0,61213.0,0.0009152]
[1723369955005,2.40802891,61214.0,61213.0,0.0009152]
[1723369955653,2.42202891,61214.0,61213.0,0.0009152]
[1723369955899,1.04919,61213.0,61212.0,0.0009152]
[1723369956081,2.30410492,61213.0,61212.0,0.0009152]
[1723369957412,2.58219451,61213.0,61212.0,0.0009152]
[1723369957951,2.57219451,61213.0,61212.0,0.0009152]
[1723369958180,2.62070967,61213.0,61212.0,0.0009152]
[1723369958513,2.63470967,61213.0,61212.0,0.0009152]
[1723369958908,2.62070967,61213.0,61212.0,0.0009152]
[1723369959101,2.65522484,61213.0,61212.0,0.0009152]
[1723369959807,0.883562,61207.0,61206.0,0.0009152]
[1723369959999,2.03426651,61207.0,61206.0,0.0009152]
[1723369960294,2.1071729,61207.0,61206.0,0.0009152]
[1723369960441,2.1171729,61207.0,61206.0,0.0009152]
[1723369960645,2.1071729,61207.0,61206.0,0.0009152]
[1723369960861,2.1171729,61207.0,61206.0,0.0009152]
[1723369961059,2.1071729,61207.0,61206.0,0.0009152]
[1723369961260,2.1171729,61207.0,61206.0,0.0009152]
[1723369961459,2.1071729,61207.0,61206.0,0.0009152]
[1723369962251,2.1351729,61207.0,61206.0,0.0009152]
[1723369962407,2.09128331,61207.0,61206.0,0.0009152]
[1723369962608,2.14451594,61207.0,61206.0,0.0009152]
[1723369962945,2.09582519,61207.0,61206.0,0.0009152]
[1723369963271,2.13451606,61207.0,61206.0,0.0009152]
[1723369964284,2.14365003,61207.0,61206.0,0.0009152]
[1723369965153,1.98774364,61207.0,61206.0,0.0009152]
[1723369965357,2.06063329,61207.0,61206.0,0.0009152]
[1723369965575,1.9877269,61207.0,61206.0,0.0009152]
[1723369965790,2.06063329,61207.0,61206.0,0.0009152]
[1723369966444,2.00741728,61207.0,61206.0,0.0009152]
[1723369966655,2.06079277,61207.0,61206.0,0.0009152]
[1723369967901,1.98788638,61207.0,61206.0,0.0009152]
[1723369968325,2.06079277,61207.0,61206.0,0.0009152]
[1723369968525,2.06035088,61207.0,61206.0,0.0009152]
[1723369969692,2.06035334,61207.0,61206.0,0.0009152]
[1723369969828,2.14055334,61207.0,61206.0,0.0009152]
[1723369970039,2.03746958,61207.0,61206.0,0.0009152]
[1723369970243,1.68277889,61207.0,61206.0,0.1493152]
[1723369970446,1.96441712,61207.0,61206.0,0.1493152]
[1723369970644,1.91151089,61207.0,61206.0,0.1493152]
[1723369970877,1.35404689,61207.0,61206.0,0.1493152]
[1723369971049,0.371098,61207.0,61206.0,0.1493152]
[1723369974461,0.59983,61207.0,61206.0,0.1493152]
[1723369974855,0.371098,61207.0,61206.0,0.1493152]
[1723369975469,0.59983,61207.0,61206.0,0.1493152]
[1723369975677,0.371098,61207.0,61206.0,0.1493152]
[1723369976847,0.76364492,61207.0,61206.0,0.0668152]
[1723369977048,0.028,61207.0,61206.0,0.1493152]
[1723369977312,0.028,61207.0,61206.0,0.2636822]
[1723369977465,0.028,61207.0,61206.0,0.7211522]
[1723369977643,0.028,61207.0,61206.0,0.8647022]
[1723369977843,0.028,61207.0,61206.0,0.72900316]
[1723369978051,0.028,61207.0,61206.0,0.40723172]
[1723369978251,0.014,61207.0,61206.0,0.27153316]
[1723369978467,0.028,61207.0,61206.0,0.40723024]
[1723369978645,0.028,61207.0,61206.0,0.63596524]
[1723369978864,0.014,61207.0,61206.0,0.86470024]
[1723369979071,0.00885364,61211.0,61210.0,0.26276]
[1723369979269,0.000832,61212.0,61210.0,0.12220661]
[1723369979484,0.000832,61212.0,61211.0,0.1484]
[1723369979940,0.000832,61212.0,61211.0,0.27060352]
[1723369980649,0.51672463,61212.0,61211.0,0.00784552]
[1723369980868,1.54543763,61212.0,61211.0,0.00784552]
[1723369981021,1.54543763,61212.0,61208.0,0.0659]
[1723369981022,0.343086,61209.0,61208.0,0.0659]
[1723369981429,1.31562492,61209.0,61208.0,0.0659]
[1723369981600,0.343098,61207.0,61206.0,0.0009152]
[1723369981805,0.73564492,61207.0,61206.0,0.0009152]
[1723369983069,0.74164492,61207.0,61206.0,0.0009152]
[1723369983772,0.75064492,61207.0,61206.0,0.0009152]
[1723369984066,0.74164492,61207.0,61206.0,0.0009152]
[1723369984475,1.39564492,61207.0,61206.0,0.0009152]
[1723369984626,0.73564492,61207.0,61206.0,0.0009152]
[1723369984824,0.76364492,61207.0,61206.0,0.0009152]
[1723369985233,0.74964492,61207.0,61206.0,0.0009152]
[1723369985630,0.76364492,61207.0,61206.0,0.0009152]
[1723369986066,1.81547692,61207.0,61206.0,0.0009152]
[1723369986279,1.86416444,61207.0,61206.0,0.0009152]
[1723369986471,1.18476444,61207.0,61206.0,0.0009152]
[1723369986677,1.12207692,61207.0,61206.0,0.0009152]
[1723369986875,1.17075969,61207.0,61206.0,0.0009152]
[1723369987076,1.18475969,61207.0,61206.0,0.0009152]
[1723369987283,1.12207692,61207.0,61206.0,0.0009152]
[1723369987723,1.13607692,61207.0,61206.0,0.0009152]
[1723369988035,1.10807692,61207.0,61206.0,0.0009152]
[1723369988245,1.14507692,61207.0,61206.0,0.0009152]
[1723369988642,1.13107692,61207.0,61206.0,0.0009152]
[1723369989023,1.14507692,61207.0,61206.0,0.0009152]
[1723369989382,1.13107692,61207.0,61206.0,0.0009152]
[1723369989585,1.89107692,61207.0,61206.0,0.0009152]
[1723369989810,2.00680304,61207.0,61206.0,0.0009152]
[1723369990009,1.93377911,61207.0,61206.0,0.0009152]
[1723369990242,2.05658438,61207.0,61206.0,0.0009152]
[1723369990632,2.07058438,61207.0,61206.0,0.0009152]
[1723369991022,2.06658438,61207.0,61206.0,0.0009152]
[1723369991450,0.56105514,61207.0,61206.0,0.1419152]
[1723369991790,0.74864492,61207.0,61206.0,0.1419152]
[1723369992003,0.74864492,61207.0,61206.0,0.0618152]
[1723369992004,0.76264492,61207.0,61206.0,0.0618152]
[1723369992211,0.74964492,61207.0,61206.0,0.0009152]
[1723369992427,1.35364492,61207.0,61206.0,0.0009152]
[1723369992826,1.58237692,61207.0,61206.0,0.0009152]
[1723369992998,1.5691521,61207.0,61206.0,0.0009152]
[1723369993198,1.60871206,61207.0,61206.0,0.0009152]
[1723369993453,1.6061521,61207.0,61206.0,0.0009152]
[1723369993636,1.64563342,61207.0,61206.0,0.0009152]
[1723369993874,1.63163342,61207.0,61206.0,0.0009152]
[1723369994051,1.80166918,61207.0,61206.0,0.0009152]
[1723369994250,1.88904553,61207.0,61206.0,0.0009152]
[1723369994476,1.80566918,61207.0,61206.0,0.0009152]
[1723369994664,1.74073342,61207.0,61206.0,0.0009152]
[1723369994854,1.84073342,61207.0,61206.0,0.0009152]
[1723369995063,1.81273342,61207.0,61206.0,0.0009152]
[1723369995269,1.75847692,61207.0,61206.0,0.0009152]
[1723369995487,1.82764008,61207.0,61206.0,0.0009152]
[1723369995676,2.01178978,61207.0,61206.0,0.0009152]
[1723369995883,2.01232044,61207.0,61206.0,0.0009152]
[1723369996519,2.03632044,61207.0,61206.0,0.0009152]
[1723369997105,2.02632044,61207.0,61206.0,0.0009152]
[1723369998128,2.03632044,61207.0,61206.0,0.0009152]
[1723369998323,1.87217074,61207.0,61206.0,0.0009152]
[1723369998936,1.82148909,61207.0,61206.0,0.0009152]
[1723369999147,1.86244163,61207.0,61206.0,0.0009152]
[1723369999737,1.96412449,61207.0,61206.0,0.0009152]
[1723370000943,1.88302046,61207.0,61206.0,0.0009152]
[1723370002344,1.69738909,61207.0,61206.0,0.0642152]
[1723370002545,0.86364492,61207.0,61206.0,0.0642152]
[1723370002919,1.64231833,61207.0,61206.0,0.0642152]
[1723370003069,1.87105033,61207.0,61206.0,0.0009152]
[1723370003271,1.87756359,61207.0,61206.0,0.0009152]
[1723370003485,1.83731232,61207.0,61206.0,0.0009152]
[1723370003884,1.64911468,61207.0,61206.0,0.0009152]
[1723370004064,1.60858032,61207.0,61206.0,0.0009152]
[1723370004247,1.66665058,61207.0,61206.0,0.0009152]
[1723370004852,2.05568272,61207.0,61206.0,0.0009152]
[1723370005053,2.07868272,61207.0,61206.0,0.0009152]
[1723370005410,2.07868215,61207.0,61206.0,0.0009152]
[1723370005615,1.98134303,61207.0,61206.0,0.0009152]
[1723370006012,2.078684,61207.0,61206.0,0.0009152]
[1723370006222,2.04724303,61207.0,61206.0,0.0009152]
[1723370006406,1.99177692,61207.0,61206.0,0.0009152]
[1723370006613,2.0477671,61207.0,61206.0,0.0009152]
[1723370006821,2.0577671,61207.0,61206.0,0.0009152]
[1723370007042,2.04272099,61207.0,61206.0,0.0009152]
[1723370007250,2.05776964,61207.0,61206.0,0.0009152]
[1723370007589,2.06776964,61207.0,61206.0,0.0009152]
[1723370007798,2.06776964,61207.0,61174.0,0.4796]
[1723370007799,0.01,61199.0,61174.0,0.4796]
[1723370007994,0.343182,61192.0,61191.0,0.1434]
[1723370008202,0.67197,61192.0,61191.0,0.1434]
[1723370008407,0.67197,61192.0,61191.0,0.15142622]
[1723370008650,0.900758,61192.0,61191.0,0.1434]
[1723370008830,0.900758,61192.0,61191.0,0.0634]
[1723370009175,0.900758,61192.0,61191.0,0.0001]
[1723370009374,0.913758,61192.0,61191.0,0.0001]
[1723370009806,0.900758,61192.0,61191.0,0.0001]
[1723370010002,0.913758,61192.0,61191.0,0.0001]
[1723370010457,0.900758,61192.0,61191.0,0.0001]
[1723370010848,0.934758,61192.0,61191.0,0.0001]
[1723370011189,0.937758,61192.0,61191.0,0.0001]
[1723370011391,0.950758,61192.0,61191.0,0.0001]
[1723370013759,1.700758,61192.0,61191.0,0.0001]
[1723370014209,1.86457292,61192.0,61191.0,0.0001]
[1723370015300,2.06507292,61192.0,61191.0,0.0001]
[1723370015513,2.15557292,61192.0,61191.0,0.0010152]
[1723370015868,2.14557292,61192.0,61191.0,0.0010152]
[1723370016558,2.15557292,61192.0,61191.0,0.0010152]
[1723370016696,2.14557292,61192.0,61191.0,0.0010152]
[1723370017108,2.16473061,61192.0,61191.0,0.0010152]
[1723370017911,2.51686848,61192.0,61191.0,0.0010152]
[1723370018186,0.29997261,61192.0,61191.0,0.1443152]
[1723370018385,0.87194261,61192.0,61191.0,0.1443152]
[1723370018605,0.87194261,61192.0,61191.0,0.15294794]
[1723370018815,0.85894261,61192.0,61191.0,0.1443152]
[1723370019019,1.08773061,61192.0,61191.0,0.1443152]
[1723370019194,0.84494261,61192.0,61191.0,0.1443152]
[1723370019395,0.63015461,61192.0,61191.0,0.1443152]
[1723370019595,0.64415461,61192.0,61191.0,0.1443152]
[1723370019795,0.85894261,61192.0,61191.0,0.15294794]
[1723370020032,0.85894261,61192.0,61191.0,0.1443152]
[1723370020230,0.87294261,61192.0,61191.0,0.1443152]
[1723370020765,0.13715769,61192.0,61191.0,0.1443152]
[1723370020969,0.014,61192.0,61191.0,0.4875012]
[1723370021263,0.014,61192.0,61191.0,0.49613394]
[1723370021432,0.028,61192.0,61191.0,0.49613394]
[1723370021865,0.014,61192.0,61191.0,0.15294794]
[1723370022065,0.014,61192.0,61191.0,0.26734294]
[1723370022273,0.228751,61202.0,61194.0,0.114389]
[1723370022474,0.114383,61198.0,61194.0,0.1478]
[1723370022587,0.114383,61198.0,61197.0,0.1478]
[1723370022994,0.114383,61198.0,61197.0,0.15642622]
[1723370023702,0.127383,61198.0,61197.0,0.15642622]
[1723370024563,0.013,61198.0,61197.0,0.15642622]
[1723370025003,0.013,61198.0,61197.0,0.49957922]
[1723370025429,0.013,61198.0,61197.0,0.27081022]
[1723370025632,0.013,61198.0,61197.0,0.15642622]
[1723370025840,0.127382,61198.0,61197.0,0.15642622]
[1723370026041,0.138382,61198.0,61197.0,0.15642622]
[1723370026250,0.367147,61198.0,61197.0,0.15642622]
[1723370026462,0.75972692,61198.0,61197.0,0.07462622]
[1723370026870,0.75972692,61198.0,61197.0,0.066]
[1723370027061,0.343182,61192.0,61191.0,0.0828152]
[1723370027474,0.50699692,61192.0,61191.0,0.09139164]
[1723370027681,0.50699692,61192.0,61191.0,0.0670152]
[1723370027682,1.71763138,61192.0,61191.0,0.0670152]
[1723370027876,1.71763138,61192.0,61191.0,0.0010152]
[1723370028008,0.91763138,61192.0,61191.0,0.0010152]
[1723370028360,0.83978492,61192.0,61191.0,0.0010152]
[1723370028818,1.75341316,61192.0,61191.0,0.0010152]
[1723370029021,1.79041316,61192.0,61191.0,0.0010152]
[1723370029376,1.70157292,61192.0,61191.0,0.0010152]
[1723370029575,1.74219041,61192.0,61191.0,0.0010152]
[1723370029831,1.69357292,61192.0,61191.0,0.0010152]
[1723370030037,1.08757292,61192.0,61191.0,0.0010152]
[1723370030432,1.1502365,61192.0,61191.0,0.0010152]
[1723370030646,1.1362365,61192.0,61191.0,0.0010152]
[1723370030843,1.16049916,61192.0,61191.0,0.0010152]
[1723370031005,1.16423778,61192.0,61191.0,0.0010152]
[1723370031213,1.15023778,61192.0,61191.0,0.0010152]
[1723370031645,1.34445571,61192.0,61191.0,0.0010152]
[1723370031846,2.06453215,61192.0,61191.0,0.0010152]
[1723370032160,2.04572837,61192.0,61191.0,0.0010152]
[1723370032392,2.052241,61192.0,61191.0,0.0010152]
[1723370032827,2.05224223,61192.0,61191.0,0.0010152]
[1723370033367,2.06224223,61192.0,61191.0,0.0010152]
[1723370033611,2.05224223,61192.0,61191.0,0.0010152]
[1723370034141,2.00289004,61192.0,61191.0,0.0010152]
[1723370034291,2.0340016,61192.0,61191.0,0.0010152]
[1723370034502,2.0340016,61192.0,61185.0,0.000191]
[1723370034503,0.974835,61186.0,61185.0,0.000191]
[1723370034659,2.59707148,61186.0,61185.0,0.000191]
[1723370035102,2.62007148,61186.0,61185.0,0.000191]
[1723370036414,2.56095992,61186.0,61185.0,0.000191]
[1723370036606,2.78407313,61186.0,61185.0,0.000191]
[1723370037009,2.79807313,61186.0,61185.0,0.000191]
[1723370037583,2.81207313,61186.0,61185.0,0.000191]
[1723370038004,2.78807313,61186.0,61185.0,0.000191]
[1723370038451,2.81207313,61186.0,61185.0,0.000191]
[1723370038983,2.78407313,61186.0,61185.0,0.000191]
[1723370039158,2.79807313,61186.0,61185.0,0.000191]
[1723370039364,2.80207313,61186.0,61185.0,0.000191]
[1723370039666,2.79807313,61186.0,61185.0,0.000191]
[1723370039797,2.81207313,61186.0,61185.0,0.000191]
[1723370040217,2.94799333,61186.0,61185.0,0.000191]
[1723370040416,2.93170459,61186.0,61185.0,0.000191]
[1723370040618,2.94452445,61186.0,61185.0,0.000191]
[1723370040821,2.77460425,61186.0,61185.0,0.000191]
[1723370041025,3.16313263,61186.0,61185.0,0.000191]
[1723370041223,3.01741425,61186.0,61185.0,0.000191]
[1723370041424,3.02741425,61186.0,61185.0,0.000191]
[1723370041831,3.02741425,61186.0,61185.0,0.0011062]
[1723370042035,1.059676,61184.0,61183.0,0.009152]
[1723370042249,1.059676,61184.0,61171.0,0.0001]
[1723370042250,0.373293,61172.0,61171.0,0.0001]
[1723370042460,0.373293,61172.0,61170.0,0.009152]
[1723370042461,0.373299,61171.0,61170.0,0.009152]
[1723370042794,2.72917609,61171.0,61170.0,0.009152]
[1723370043303,2.75217609,61171.0,61170.0,0.009152]
[1723370043544,3.20502309,61171.0,61170.0,0.009152]
[1723370043867,3.20502309,61171.0,61147.0,0.0643]
[1723370043868,0.314966,61153.0,61147.0,0.0643]
[1723370043945,0.772832,61153.0,61147.0,0.0643]
[1723370044155,1.28857992,61153.0,61147.0,0.0643]
[1723370044396,1.29857992,61153.0,61143.0,0.0001]
[1723370044610,2.42277,61153.0,61143.0,0.0001]
[1723370045232,0.1436,61152.0,61138.0,0.0001]
[1723370045437,0.55043946,61139.0,61138.0,0.0001]
[1723370045638,0.672465,61139.0,61138.0,0.0001]
[1723370045847,0.924451,61139.0,61138.0,0.0001]
[1723370046458,0.98201826,61139.0,61138.0,0.0001]
[1723370046670,1.04204279,61139.0,61138.0,0.0001]
[1723370046877,1.20585771,61139.0,61138.0,0.0001]
[1723370047070,2.01585771,61139.0,61138.0,0.0001]
[1723370047276,2.16722348,61139.0,61138.0,0.0001]
[1723370047680,1.95829045,61139.0,61138.0,0.0001]
[1723370048118,1.14829045,61139.0,61138.0,0.0001]
[1723370048336,1.95826592,61139.0,61138.0,0.0001]
[1723370048534,1.99626592,61139.0,61138.0,0.0001]
[1723370048735,1.98226592,61139.0,61138.0,0.0001]
[1723370048960,2.12241562,61139.0,61138.0,0.0001]
[1723370049143,2.13641562,61139.0,61138.0,0.0001]
[1723370049316,2.14641562,61139.0,61138.0,0.0001]
[1723370049721,2.21044015,61139.0,61138.0,0.0001]
[1723370049921,1.97629045,61139.0,61138.0,0.0001]
[1723370050486,2.00629045,61139.0,61138.0,0.0001]
[1723370050726,2.23527645,61139.0,61138.0,0.0001]
[1723370050923,2.00629045,61139.0,61138.0,0.0001]
[1723370051124,2.22127645,61139.0,61138.0,0.0001]
[1723370051348,2.38542615,61139.0,61138.0,0.0001]
[1723370052172,2.37142615,61139.0,61138.0,0.0001]
[1723370052371,2.38542615,61139.0,61138.0,0.0001]
[1723370052572,2.24774015,61139.0,61138.0,0.0001]
[1723370052828,2.23374015,61139.0,61138.0,0.0001]
[1723370053057,2.05559045,61139.0,61138.0,0.0001]
[1723370053233,2.30257645,61139.0,61138.0,0.0001]
[1723370053617,1.97629045,61139.0,61138.0,0.0001]
[1723370053834,1.85329045,61139.0,61138.0,0.0653152]
[1723370054019,1.56427992,61139.0,61138.0,0.0653152]
[1723370054229,0.76427992,61139.0,61138.0,0.1444152]
[1723370054483,0.52129392,61139.0,61138.0,0.1444152]
[1723370055076,0.53529392,61139.0,61138.0,0.1444152]
[1723370055291,0.39280092,61139.0,61138.0,0.1444152]
[1723370055486,0.2005,61149.0,61141.0,0.0791]
[1723370055695,0.114487,61142.0,61141.0,0.0791]
[1723370055881,0.114487,61142.0,61141.0,0.1434]
[1723370056169,0.114485,61144.0,61142.0,0.0791]
[1723370056525,0.228946,61150.0,61142.0,0.0791]
[1723370056526,0.228946,61150.0,61144.0,0.0791]
[1723370056753,0.228946,61150.0,61147.0,0.0643]
[1723370056754,0.16381492,61150.0,61147.0,0.0643]
[1723370056960,0.114469,61152.0,61147.0,0.0643]
[1723370057163,0.114464,61155.0,61151.0,0.0643]
[1723370057332,0.114466,61154.0,61152.0,0.0791]
[1723370057557,0.16381492,61155.0,61152.0,0.0791]
[1723370057752,0.01,61172.0,61152.0,0.0791]
[1723370057753,0.228901,61162.0,61152.0,0.0791]
[1723370057955,0.22886,61173.0,61152.0,0.0791]
[1723370057956,0.114458,61158.0,61154.0,0.0791]
[1723370058311,0.16381492,61162.0,61158.0,0.0791]
[1723370058508,0.16381492,61162.0,61160.0,0.0791]
[1723370058711,0.114452,61161.0,61160.0,0.0791]
[1723370058968,0.343356,61161.0,61160.0,0.0791]
[1723370059546,0.114452,61161.0,61160.0,0.0791]
[1723370059781,0.228879,61168.0,61160.0,0.0791]
[1723370059985,0.228879,61168.0,61161.0,0.1434]
[1723370059986,0.014,61162.0,61161.0,0.1434]
[1723370060198,0.028,61162.0,61161.0,0.49002581]
[1723370060408,0.014,61162.0,61161.0,0.49002581]
[1723370061114,0.014,61162.0,61161.0,0.257852]
[1723370061352,0.228863,61172.0,61165.0,0.0791]
[1723370061589,0.1,61171.0,61167.0,0.11444]
[1723370061794,0.11443,61173.0,61169.0,0.0791]
[1723370061967,0.1,61172.0,61169.0,0.0791]
[1723370062478,0.228827,61182.0,61171.0,0.0807]
[1723370062479,0.228848,61176.0,61171.0,0.0807]
[1723370062719,0.114426,61175.0,61171.0,0.0807]
[1723370062905,0.228841,61178.0,61171.0,0.0807]
[1723370063108,0.014,61173.0,61172.0,0.00737729]
[1723370063337,0.014,61173.0,61171.0,0.0807]
[1723370063591,0.014,61173.0,61170.0,0.11770323]
[1723370063592,0.014,61173.0,61172.0,0.08807729]
[1723370064259,0.114429,61173.0,61172.0,0.15047729]
[1723370064692,0.214429,61173.0,61172.0,0.15047729]
[1723370065658,0.239429,61173.0,61172.0,0.15047729]
[1723370066066,0.228429,61173.0,61172.0,0.15047729]
[1723370066262,0.239429,61173.0,61172.0,0.15047729]
[1723370066890,0.125,61173.0,61172.0,0.15047729]
[1723370067047,0.025,61173.0,61172.0,0.15047729]
[1723370067245,0.125,61173.0,61172.0,0.15047729]
[1723370067443,0.025,61173.0,61172.0,0.72263229]
[1723370067850,0.025,61173.0,61172.0,0.49377029]
[1723370068501,0.011,61173.0,61172.0,0.72263229]
[1723370068707,0.1,61184.0,61179.0,0.0807]
[1723370068853,0.214409,61184.0,61179.0,0.0807]
[1723370069049,0.214409,61184.0,61180.0,0.00732891]
[1723370069264,0.1,61184.0,61180.0,0.00732891]
[1723370069456,0.114411,61183.0,61180.0,0.00732891]
[1723370069711,0.1,61182.0,61180.0,0.00732891]
[1723370069909,0.572072,61181.0,61180.0,0.00732891]
[1723370070119,0.343243,61181.0,61180.0,0.00732891]
[1723370070295,0.343248,61180.0,61179.0,0.0807]
[1723370070715,0.114416,61180.0,61179.0,0.0807]
[1723370070982,0.343248,61180.0,61179.0,0.0817]
[1723370071393,0.343248,61180.0,61179.0,0.0807]
[1723370071590,0.343248,61180.0,61179.0,0.08803327]
[1723370071794,0.357248,61180.0,61179.0,0.08903327]
[1723370072664,0.357248,61180.0,61179.0,0.0817]
[1723370072867,0.58608,61180.0,61179.0,0.001]
[1723370073005,0.74989492,61180.0,61179.0,0.001]
[1723370073194,0.76389492,61180.0,61179.0,0.001]
[1723370074865,0.53506292,61180.0,61179.0,0.001]
[1723370076746,0.028,61180.0,61179.0,0.1441]
[1723370077103,0.142416,61180.0,61179.0,0.1513821]
[1723370077355,0.028,61180.0,61179.0,0.1513821]
[1723370077528,0.028833,61180.0,61179.0,0.1513821]
[1723370078231,0.028833,61180.0,61179.0,0.2658001]
[1723370078430,0.028833,61180.0,61179.0,0.4946361]
[1723370078830,0.028833,61180.0,61179.0,0.2658001]
[1723370079223,0.014833,61180.0,61179.0,0.4946361]
[1723370079436,0.000833,61180.0,61179.0,0.4936361]
[1723370079638,0.014833,61180.0,61179.0,0.4936361]
[1723370079843,0.024833,61180.0,61179.0,0.4936361]
[1723370080087,0.010833,61180.0,61179.0,0.9513081]
[1723370080791,0.010833,61180.0,61179.0,0.9613081]
[1723370080983,0.010833,61180.0,61179.0,1.12512302]
[1723370081191,0.000833,61180.0,61179.0,1.12512302]
[1723370081406,0.011833,61180.0,61179.0,1.12612302]
[1723370081535,0.020833,61180.0,61179.0,0.88728702]
[1723370081734,0.009833,61180.0,61179.0,0.88983654]
[1723370081969,0.013833,61180.0,61179.0,0.89083654]
[1723370082196,0.013833,61180.0,61179.0,0.72702162]
[1723370082401,0.023833,61180.0,61179.0,0.72702162]
[1723370083571,0.023833,61180.0,61179.0,0.49818562]
[1723370084720,0.023833,61180.0,61179.0,0.26934962]
[1723370084923,0.023833,61180.0,61179.0,0.15493162]
[1723370085279,0.023833,61180.0,61179.0,0.15253162]
[1723370088371,0.138249,61180.0,61179.0,0.07423162]
[1723370089304,0.138249,61180.0,61179.0,0.01183162]
[1723370089305,0.367081,61180.0,61179.0,0.01183162]
[1723370089737,0.138249,61180.0,61179.0,0.001]
[1723370090207,0.023833,61180.0,61179.0,0.01175118]
[1723370090323,0.023833,61180.0,61179.0,0.001]
[1723370090520,0.023833,61180.0,61179.0,0.01175118]
[1723370090736,0.023833,61180.0,61179.0,0.001]
[1723370090935,0.023833,61180.0,61179.0,0.01175118]
[1723370091134,0.023833,61180.0,61179.0,0.001]
[1723370091334,0.023833,61180.0,61179.0,0.01175118]
[1723370092348,0.138249,61180.0,61179.0,0.01175118]
[1723370092617,0.023833,61180.0,61179.0,0.01175118]
[1723370093687,0.138249,61180.0,61179.0,0.01175118]
[1723370094042,0.367081,61180.0,61179.0,0.01175118]
[1723370094244,0.367081,61180.0,61179.0,0.001]
[1723370094462,0.53089592,61180.0,61179.0,0.001]
[1723370095617,1.33089592,61180.0,61179.0,0.001]
[1723370095757,0.53089592,61180.0,61179.0,0.001]
[1723370097030,0.75972792,61180.0,61179.0,0.001]
[1723370097230,0.53089592,61180.0,61179.0,0.001]
[1723370097478,0.75972792,61180.0,61179.0,0.001]
[1723370097680,0.53089592,61180.0,61179.0,0.001]
[1723370098206,0.59469592,61180.0,61179.0,0.001]
[1723370098610,0.75972792,61180.0,61179.0,0.001]
[1723370099526,0.30206392,61180.0,61179.0,0.001]
[1723370099721,0.53089592,61180.0,61179.0,0.001]
[1723370101743,0.30206392,61180.0,61179.0,0.001]
[1723370102122,0.138249,61180.0,61179.0,0.01178071]
[1723370102324,0.138249,61180.0,61179.0,0.001]
[1723370102494,0.138249,61180.0,61179.0,0.00823611]
[1723370102907,0.023833,61180.0,61179.0,0.00823611]
[1723370104440,0.023833,61180.0,61179.0,0.00844301]
[1723370105344,0.023833,61180.0,61179.0,0.12286101]
[1723370105576,0.023833,61180.0,61179.0,0.43149701]
[1723370106600,0.023833,61180.0,61179.0,0.72393301]
[1723370106953,0.023833,61180.0,61179.0,0.63085612]
[1723370107169,0.023833,61180.0,61179.0,1.26233737]